[Event "*** Titled Tuesday 3|2 Blitz"]
[Site "Chess.com"]
[Date "2016.07.05"]
[Round "1"]
[White "Astaneh"]
[Black "AungTZ"]
[Result "0-1"]
[WhiteElo "2451"]
[BlackElo "2136"]
[TimeControl "180+2"]
[EndTime "17:10:31 PDT"]
[Termination "AungTZ won by resignation"]

1. e4 {[%clk 0:03:00.9]} 1... c5 {[%clk 0:03:00.5]} 2. Nc3 {[%clk 0:03:02.3]}
2... a6 {[%clk 0:03:01.1]} 3. a4 {[%clk 0:03:00.1]} 3... Nc6 {[%clk 0:03:00.8]}
4. Nf3 {[%clk 0:03:00.5]} 4... e6 {[%clk 0:03:01.9]} 5. Bc4 {[%clk 0:02:56.5]}
5... Nf6 {[%clk 0:03:01.9]} 6. O-O {[%clk 0:02:55.2]} 6... Be7 {[%clk 0:02:59]}
7. e5 {[%clk 0:02:53.9]} 7... Ng4 {[%clk 0:02:53.9]} 8. Re1 {[%clk 0:02:55]}
8... Qc7 {[%clk 0:02:54.9]} 9. Qe2 {[%clk 0:02:51.2]} 9... d6 {[%clk 0:02:54.6]}
10. exd6 {[%clk 0:02:49.7]} 10... Bxd6 {[%clk 0:02:55.7]} 11. h3 {[%clk
0:02:50.6]} 11... Nge5 {[%clk 0:02:53.3]} 12. Nxe5 {[%clk 0:02:50]} 12... Nxe5
{[%clk 0:02:54.5]} 13. Ne4 {[%clk 0:02:48.1]} 13... Nxc4 {[%clk 0:02:47.8]} 14.
Qxc4 {[%clk 0:02:50]} 14... O-O {[%clk 0:02:32.8]} 15. Nxd6 {[%clk 0:02:35]}
15... Qxd6 {[%clk 0:02:33.7]} 16. d3 {[%clk 0:02:36.6]} 16... b5 {[%clk
0:02:32.7]} 17. Qf4 {[%clk 0:02:26.4]} 17... Qc6 {[%clk 0:02:24.5]} 18. axb5
{[%clk 0:02:24.5]} 18... axb5 {[%clk 0:02:25.7]} 19. Rxa8 {[%clk 0:01:45.8]}
19... Qxa8 {[%clk 0:02:26]} 20. Be3 {[%clk 0:01:40]} 20... Qc6 {[%clk
0:02:11.2]} 21. Qg3 {[%clk 0:01:36.4]} 21... Kh8 {[%clk 0:01:37.5]} 22. Ra1
{[%clk 0:01:33.5]} 22... Bb7 {[%clk 0:01:33.6]} 23. Ra7 {[%clk 0:01:32.5]} 23...
h6 {[%clk 0:01:34.6]} 24. c3 {[%clk 0:01:26.5]} 24... Kh7 {[%clk 0:01:26.7]} 25.
Bxc5 {[%clk 0:01:21.7]} 25... Re8 {[%clk 0:00:57.1]} 26. b4 {[%clk 0:01:11.7]}
26... e5 {[%clk 0:00:57.6]} 27. f3 {[%clk 0:01:10.7]} 27... Re6 {[%clk
0:00:58.2]} 28. Qg4 {[%clk 0:00:39.7]} 28... Rg6 {[%clk 0:00:43.4]} 29. Qe4
{[%clk 0:00:40.1]} 29... Qxe4 {[%clk 0:00:34.9]} 30. dxe4 {[%clk 0:00:42]} 30...
Bc8 {[%clk 0:00:36.2]} 31. Rxf7 {[%clk 0:00:19.4]} 31... Bxh3 {[%clk 0:00:36.1]}
32. g4 {[%clk 0:00:20.5]} 32... h5 {[%clk 0:00:36.9]} 33. Kh2 {[%clk 0:00:21.1]}
33... hxg4 {[%clk 0:00:37.1]} 34. Kg3 {[%clk 0:00:22.2]} 34... Bf1 {[%clk
0:00:32.6]} 35. fxg4 {[%clk 0:00:22.8]} 35... Be2 {[%clk 0:00:33.9]} 36. Kf2
{[%clk 0:00:20.7]} 36... Bc4 {[%clk 0:00:29.8]} 37. Rf5 {[%clk 0:00:20.4]} 37...
Rxg4 {[%clk 0:00:26.2]} 38. Rxe5 {[%clk 0:00:21.5]} 38... Bd3 {[%clk 0:00:27.6]}
39. Ke3 {[%clk 0:00:22]} 39... Bc4 {[%clk 0:00:28.2]} 40. Bd4 {[%clk 0:00:23.2]}
40... Rg6 {[%clk 0:00:28.9]} 41. Re7 {[%clk 0:00:22.8]} 41... Kh6 {[%clk
0:00:29.7]} 42. Kf4 {[%clk 0:00:22.4]} 42... Rg2 {[%clk 0:00:30.1]} 43. Kf5
{[%clk 0:00:21]} 43... Bd3 {[%clk 0:00:28.1]} 44. Be3+ {[%clk 0:00:20.6]} 44...
Kh5 {[%clk 0:00:27.1]} 45. Re8 {[%clk 0:00:21.8]} 45... Kh4 {[%clk 0:00:12.8]}
46. Bf4 {[%clk 0:00:17.4]} 46... g6+ {[%clk 0:00:06.3]} 47. Ke5 {[%clk
0:00:18.6]} 47... Kg4 {[%clk 0:00:07.3]} 48. Be3 {[%clk 0:00:16.4]} 48... Kf3
{[%clk 0:00:08.1]} 49. Kd4 {[%clk 0:00:17.2]} 49... Bc4 {[%clk 0:00:08.8]} 50.
Rf8+ {[%clk 0:00:17.8]} 50... Ke2 {[%clk 0:00:09.4]} 51. e5 {[%clk 0:00:16.9]}
51... g5 {[%clk 0:00:10.7]} 52. Rg8 {[%clk 0:00:15.7]} 52... Rg4+ {[%clk
0:00:11.7]} 53. Kc5 {[%clk 0:00:16.4]} 53... Kxe3 {[%clk 0:00:13.1]} 54. e6
{[%clk 0:00:16.8]} 54... Re4 {[%clk 0:00:11.2]} 55. Rxg5 {[%clk 0:00:17.1]}
55... Rxe6 {[%clk 0:00:12.4]} 56. Rg3+ {[%clk 0:00:17.6]} 56... Kf4 {[%clk
0:00:13.7]} 57. Rh3 {[%clk 0:00:18.7]} 57... Re5+ {[%clk 0:00:15]} 58. Kd4
{[%clk 0:00:19.7]} 58... Rg5 {[%clk 0:00:16.8]} 59. Rh4+ {[%clk 0:00:20.5]}
59... Rg4 {[%clk 0:00:18]} 60. Rh6 {[%clk 0:00:20.1]} 60... Kf3+ {[%clk
0:00:19.3]} 61. Kc5 {[%clk 0:00:20.9]} 61... Ke2 {[%clk 0:00:20.6]} 62. Rh3
{[%clk 0:00:21.1]} 62... Kd2 {[%clk 0:00:21.4]} 63. Rf3 {[%clk 0:00:21.5]} 63...
Kc2 {[%clk 0:00:22.5]} 64. Re3 {[%clk 0:00:22.7]} 64... Bd3 {[%clk 0:00:23.2]}
65. Rh3 {[%clk 0:00:21.1]} 65... Kxc3 {[%clk 0:00:23.9]} 66. Rf3 {[%clk
0:00:22.4]} 66... Rc4+ {[%clk 0:00:24.1]} 67. Kd5 {[%clk 0:00:21.7]} 67... Rxb4
{[%clk 0:00:25.2]} 68. Kc5 {[%clk 0:00:22.4]} 68... Rb1 {[%clk 0:00:25.8]} 69.
Rg3 {[%clk 0:00:22.7]} 69... b4 {[%clk 0:00:27.2]} 0-1

[Event "*** Titled Tuesday 3|2 Blitz"]
[Site "Chess.com"]
[Date "2016.07.05"]
[Round "1"]
[White "Danhy"]
[Black "RobertoJBM"]
[Result "1/2-1/2"]
[WhiteElo "2396"]
[BlackElo "2122"]
[TimeControl "180+2"]
[EndTime "17:11:40 PDT"]
[Termination "Game drawn by repetition"]

1. c4 {[%clk 0:03:01.2]} 1... c6 {[%clk 0:02:17.7]} 2. g3 {[%clk 0:03:00.7]}
2... d5 {[%clk 0:02:19.6]} 3. Nf3 {[%clk 0:03:01.8]} 3... Nf6 {[%clk 0:02:20.3]}
4. Bg2 {[%clk 0:03:02.1]} 4... Bf5 {[%clk 0:02:19.3]} 5. cxd5 {[%clk 0:03:00.1]}
5... cxd5 {[%clk 0:02:21.2]} 6. Qb3 {[%clk 0:03:01.6]} 6... Qb6 {[%clk
0:02:22.1]} 7. Qxb6 {[%clk 0:03:02.2]} 7... axb6 {[%clk 0:02:24]} 8. Nc3 {[%clk
0:03:03.2]} 8... e6 {[%clk 0:02:24.8]} 9. d3 {[%clk 0:03:02.2]} 9... Be7 {[%clk
0:02:24.9]} 10. O-O {[%clk 0:03:02.4]} 10... h6 {[%clk 0:02:25.5]} 11. Nd4
{[%clk 0:02:59.5]} 11... Bg6 {[%clk 0:02:25.7]} 12. e4 {[%clk 0:02:59]} 12...
Nc6 {[%clk 0:02:22.9]} 13. Ndb5 {[%clk 0:02:57.2]} 13... O-O-O {[%clk
0:02:21.9]} 14. exd5 {[%clk 0:02:28.2]} 14... Nxd5 {[%clk 0:02:23.8]} 15. Nxd5
{[%clk 0:02:26.6]} 15... exd5 {[%clk 0:02:19.4]} 16. Rd1 {[%clk 0:02:14.1]}
16... Bf5 {[%clk 0:02:12.8]} 17. Be3 {[%clk 0:02:07]} 17... d4 {[%clk
0:02:03.5]} 18. Bxc6 {[%clk 0:01:39.3]} 18... dxe3 {[%clk 0:02:03.5]} 19. Be4
{[%clk 0:01:39.8]} 19... exf2+ {[%clk 0:02:03.8]} 20. Kxf2 {[%clk 0:01:40.4]}
20... Bc5+ {[%clk 0:02:03.7]} 21. Kf3 {[%clk 0:01:36.6]} 21... Bxe4+ {[%clk
0:01:51.8]} 22. dxe4 {[%clk 0:01:37]} 22... Rd7 {[%clk 0:01:41.5]} 23. Rac1
{[%clk 0:01:30.6]} 23... Rxd1 {[%clk 0:01:37.5]} 24. Rxd1 {[%clk 0:01:31.6]}
24... Re8 {[%clk 0:01:36.9]} 25. a3 {[%clk 0:01:24.9]} 25... Re6 {[%clk
0:01:33.1]} 26. b4 {[%clk 0:01:13]} 26... Be7 {[%clk 0:01:28.8]} 27. Rd5 {[%clk
0:01:07.3]} 27... g6 {[%clk 0:01:21.1]} 28. h4 {[%clk 0:00:53.9]} 28... h5
{[%clk 0:01:21.3]} 29. e5 {[%clk 0:00:42]} 29... f6 {[%clk 0:01:20.6]} 30. exf6
{[%clk 0:00:35.3]} 30... Rxf6+ {[%clk 0:01:19.2]} 31. Ke4 {[%clk 0:00:35.6]}
31... Rf2 {[%clk 0:01:15.5]} 32. Rd3 {[%clk 0:00:35]} 32... Rf5 {[%clk
0:01:13.7]} 33. Nd4 {[%clk 0:00:32.6]} 33... Rf1 {[%clk 0:01:11.3]} 34. Rc3+
{[%clk 0:00:33.3]} 34... Kd7 {[%clk 0:01:11.5]} 35. Ne2 {[%clk 0:00:34.3]} 35...
Bd6 {[%clk 0:01:07.4]} 36. Rd3 {[%clk 0:00:32.7]} 36... Re1 {[%clk 0:01:06.4]}
37. Kf3 {[%clk 0:00:32.5]} 37... Rf1+ {[%clk 0:01:05.9]} 38. Kg2 {[%clk
0:00:33]} 38... Rf8 {[%clk 0:01:06]} 39. Nf4 {[%clk 0:00:33.8]} 39... Rg8 {[%clk
0:01:03.9]} 40. Nd5 {[%clk 0:00:35.3]} 40... Kc6 {[%clk 0:01:03.3]} 41. Nxb6
{[%clk 0:00:36.3]} 41... Bxb4 {[%clk 0:01:01.1]} 42. axb4 {[%clk 0:00:30.7]}
42... Kxb6 {[%clk 0:01:02]} 43. Rd5 {[%clk 0:00:32.3]} 43... Kc6 {[%clk
0:01:01.4]} 44. Rg5 {[%clk 0:00:33.3]} 44... Kd6 {[%clk 0:00:59.7]} 45. Kf3
{[%clk 0:00:34.6]} 45... Ke6 {[%clk 0:01:01.1]} 46. Ke4 {[%clk 0:00:35.8]} 46...
Rg7 {[%clk 0:01:01.8]} 47. Kd4 {[%clk 0:00:36.6]} 47... Kd6 {[%clk 0:00:52.5]}
48. Kc4 {[%clk 0:00:37.2]} 48... Kc6 {[%clk 0:00:53.5]} 49. b5+ {[%clk
0:00:35.6]} 49... Kd6 {[%clk 0:00:54.4]} 50. Kd4 {[%clk 0:00:34.2]} 50... Rg8
{[%clk 0:00:54.5]} 51. Ke4 {[%clk 0:00:31.5]} 51... Ke6 {[%clk 0:00:55.3]} 52.
Rc5 {[%clk 0:00:26.5]} 52... Kd6 {[%clk 0:00:54.3]} 53. Rg5 {[%clk 0:00:27.2]}
53... Ke6 {[%clk 0:00:55.5]} 54. Kd4 {[%clk 0:00:28.7]} 54... Kd6 {[%clk
0:00:56]} 55. Kc4 {[%clk 0:00:30]} 55... b6 {[%clk 0:00:53.4]} 56. Kd4 {[%clk
0:00:31.1]} 56... Rg7 {[%clk 0:00:53.6]} 57. Rd5+ {[%clk 0:00:30.3]} 57... Ke6
{[%clk 0:00:53.7]} 58. Rd8 {[%clk 0:00:30.1]} 58... Ra7 {[%clk 0:00:49.5]} 59.
Rb8 {[%clk 0:00:18.5]} 59... Rd7+ {[%clk 0:00:50]} 60. Ke4 {[%clk 0:00:18.8]}
60... Rd6 {[%clk 0:00:51.9]} 61. Kf4 {[%clk 0:00:18.6]} 61... Kd5 {[%clk
0:00:51.2]} 62. Rc8 {[%clk 0:00:16.5]} 62... Kd4 {[%clk 0:00:50.9]} 63. Kg5
{[%clk 0:00:17.8]} 63... Rd5+ {[%clk 0:00:51.9]} 64. Kxg6 {[%clk 0:00:19.1]}
64... Rxb5 {[%clk 0:00:53.8]} 65. Rh8 {[%clk 0:00:19.6]} 65... Rb3 {[%clk
0:00:52.2]} 66. Rxh5 {[%clk 0:00:20.2]} 66... Rxg3+ {[%clk 0:00:53.2]} 67. Rg5
{[%clk 0:00:22.1]} 67... Rh3 {[%clk 0:00:53.2]} 68. h5 {[%clk 0:00:22.5]} 68...
Kc4 {[%clk 0:00:54.3]} 69. h6 {[%clk 0:00:23.8]} 69... b5 {[%clk 0:00:53.2]} 70.
h7 {[%clk 0:00:24.8]} 70... Rxh7 {[%clk 0:00:50.7]} 71. Kxh7 {[%clk 0:00:25.9]}
71... b4 {[%clk 0:00:52.6]} 72. Rg4+ {[%clk 0:00:25]} 72... Kc3 {[%clk
0:00:53.4]} 73. Rg3+ {[%clk 0:00:25.6]} 73... Kc2 {[%clk 0:00:53.9]} 74. Rg2+
{[%clk 0:00:26.4]} 74... Kc3 {[%clk 0:00:51]} 75. Rg3+ {[%clk 0:00:27.2]} 75...
Kc2 {[%clk 0:00:51.9]} 76. Rg8 {[%clk 0:00:25.8]} 76... b3 {[%clk 0:00:52.5]}
77. Rc8+ {[%clk 0:00:27.3]} 77... Kd2 {[%clk 0:00:53.2]} 78. Rb8 {[%clk
0:00:27]} 78... Kc2 {[%clk 0:00:54]} 79. Kg6 {[%clk 0:00:28]} 79... b2 {[%clk
0:00:55.1]} 80. Rc8+ {[%clk 0:00:29.9]} 80... Kd2 {[%clk 0:00:56.3]} 81. Rb8
{[%clk 0:00:30.7]} 81... Kc2 {[%clk 0:00:57.5]} 82. Rc8+ {[%clk 0:00:31]} 82...
Kd2 {[%clk 0:00:58.6]} 83. Rd8+ {[%clk 0:00:32.9]} 83... Kc3 {[%clk 0:00:58.3]}
84. Rb8 {[%clk 0:00:31.6]} 84... Kc2 {[%clk 0:00:58.6]} 85. Rc8+ {[%clk
0:00:30.6]} 85... Kd2 {[%clk 0:00:59.4]} 86. Rb8 {[%clk 0:00:31]} 86... Kc2
{[%clk 0:01:00.3]} 87. Rc8+ {[%clk 0:00:26.6]} 87... Kd2 {[%clk 0:01:01.1]} 88.
Rb8 {[%clk 0:00:27.5]} 88... Kc2 {[%clk 0:01:01.9]} 1/2-1/2

[Event "*** Titled Tuesday 3|2 Blitz"]
[Site "Chess.com"]
[Date "2016.07.05"]
[Round "1"]
[White "Semetey"]
[Black "Ksenia_Legenko"]
[Result "1-0"]
[WhiteElo "2449"]
[BlackElo "2078"]
[TimeControl "180+2"]
[EndTime "17:13:40 PDT"]
[Termination "Semetey won by resignation"]

1. d4 {[%clk 0:02:59.5]} 1... d5 {[%clk 0:03:00.4]} 2. Bf4 {[%clk 0:03:00.4]}
2... e6 {[%clk 0:03:00.5]} 3. e3 {[%clk 0:03:01.9]} 3... Nf6 {[%clk 0:03:01.3]}
4. Nd2 {[%clk 0:03:03.4]} 4... c5 {[%clk 0:03:01.8]} 5. c3 {[%clk 0:03:04.1]}
5... Nc6 {[%clk 0:03:02.4]} 6. Ngf3 {[%clk 0:03:05.3]} 6... Bd6 {[%clk
0:03:03.3]} 7. Bg3 {[%clk 0:03:06.6]} 7... b6 {[%clk 0:03:01.5]} 8. Bb5 {[%clk
0:03:04.5]} 8... Bb7 {[%clk 0:02:57.9]} 9. Qa4 {[%clk 0:03:00.4]} 9... Qc7
{[%clk 0:02:39.3]} 10. Ne5 {[%clk 0:02:49]} 10... Rc8 {[%clk 0:02:39.7]} 11.
Qxa7 {[%clk 0:02:39.2]} 11... O-O {[%clk 0:02:38.6]} 12. Nxc6 {[%clk 0:02:32.3]}
12... Bxg3 {[%clk 0:02:29.4]} 13. Qa4 {[%clk 0:02:21.5]} 13... Ra8 {[%clk
0:02:13.3]} 14. Qc2 {[%clk 0:02:15.4]} 14... Bxf2+ {[%clk 0:01:54.1]} 15. Kxf2
{[%clk 0:02:15.8]} 15... Bxc6 {[%clk 0:01:55.2]} 16. Be2 {[%clk 0:02:16.7]}
16... e5 {[%clk 0:01:41.3]} 17. h3 {[%clk 0:02:02.2]} 17... exd4 {[%clk
0:01:32.5]} 18. exd4 {[%clk 0:02:01.4]} 18... Rae8 {[%clk 0:01:17.6]} 19. Rhf1
{[%clk 0:01:55.6]} 19... Ne4+ {[%clk 0:01:14.8]} 20. Nxe4 {[%clk 0:01:56.3]}
20... dxe4 {[%clk 0:01:04]} 21. Kg1 {[%clk 0:01:51.1]} 21... cxd4 {[%clk
0:00:56.5]} 22. cxd4 {[%clk 0:01:51.8]} 22... Qd6 {[%clk 0:00:57.9]} 23. Rad1
{[%clk 0:01:50.7]} 23... Qd5 {[%clk 0:00:51.8]} 24. a3 {[%clk 0:01:47.3]} 24...
Kh8 {[%clk 0:00:46.9]} 25. Bc4 {[%clk 0:01:44.2]} 25... Qd7 {[%clk 0:00:42.1]}
26. d5 {[%clk 0:01:43.9]} 26... Bb5 {[%clk 0:00:41.6]} 27. Bxb5 {[%clk
0:01:40.7]} 27... Qxb5 {[%clk 0:00:42.2]} 28. d6 {[%clk 0:01:42.1]} 28... f5
{[%clk 0:00:40]} 29. d7 {[%clk 0:01:31]} 29... Rd8 {[%clk 0:00:40.5]} 30. Qc7
{[%clk 0:01:28.8]} 30... Qc5+ {[%clk 0:00:22]} 31. Qxc5 {[%clk 0:01:28.4]} 31...
bxc5 {[%clk 0:00:23.2]} 32. g3 {[%clk 0:01:23.7]} 32... g6 {[%clk 0:00:22.5]}
33. Rd5 {[%clk 0:01:20.1]} 33... Rf7 {[%clk 0:00:19]} 34. Rfd1 {[%clk
0:01:20.7]} 34... c4 {[%clk 0:00:18.4]} 35. a4 {[%clk 0:01:21.6]} 35... Kg7
{[%clk 0:00:18.4]} 36. a5 {[%clk 0:01:22.6]} 36... Kf6 {[%clk 0:00:15.3]} 37. a6
{[%clk 0:01:23.8]} 37... Rff8 {[%clk 0:00:10.7]} 38. a7 {[%clk 0:01:23.7]} 38...
Ke7 {[%clk 0:00:11.6]} 39. Re5+ {[%clk 0:01:22.9]} 39... Kf7 {[%clk 0:00:11.6]}
40. Rc5 {[%clk 0:01:23.2]} 40... Ke7 {[%clk 0:00:11.8]} 41. Re5+ {[%clk
0:01:03.9]} 41... Kf7 {[%clk 0:00:12.6]} 42. Kf2 {[%clk 0:01:04.5]} 42... Kf6
{[%clk 0:00:13.4]} 43. Ra5 {[%clk 0:00:57.5]} 43... Ke7 {[%clk 0:00:12.8]} 44.
Ke3 {[%clk 0:00:58.5]} 44... Ra8 {[%clk 0:00:12.5]} 45. Re5+ {[%clk 0:00:57.4]}
45... Kf6 {[%clk 0:00:13]} 46. Rc5 {[%clk 0:00:58.2]} 46... Rfd8 {[%clk
0:00:12.5]} 47. Rc7 {[%clk 0:00:48]} 47... Ke6 {[%clk 0:00:13.4]} 48. Rd4 {[%clk
0:00:48.2]} 48... Ke7 {[%clk 0:00:11.8]} 49. Kd2 {[%clk 0:00:47]} 49... Ke6
{[%clk 0:00:12.9]} 50. Kc3 {[%clk 0:00:48]} 50... g5 {[%clk 0:00:13.6]} 51. Kxc4
{[%clk 0:00:48.7]} 51... Ke5 {[%clk 0:00:12.9]} 52. Rd5+ {[%clk 0:00:49.3]}
52... Ke6 {[%clk 0:00:14]} 53. Rc6+ {[%clk 0:00:49]} 53... Ke7 {[%clk
0:00:14.7]} 54. Rc7 {[%clk 0:00:44]} 54... Ke6 {[%clk 0:00:15.2]} 55. Rd1 {[%clk
0:00:40.3]} 55... f4 {[%clk 0:00:15.3]} 56. gxf4 {[%clk 0:00:41]} 56... gxf4
{[%clk 0:00:16.3]} 57. Rc6+ {[%clk 0:00:40]} 57... Ke7 {[%clk 0:00:15.3]} 58.
Rd4 {[%clk 0:00:38.5]} 58... e3 {[%clk 0:00:14.7]} 59. Rc5 {[%clk 0:00:36.9]}
59... Rxd7 {[%clk 0:00:13.4]} 60. Re5+ {[%clk 0:00:37.9]} 60... Kd8 {[%clk
0:00:14.3]} 61. Rxf4 {[%clk 0:00:37.6]} 61... Raxa7 {[%clk 0:00:14]} 62. Rf8+
{[%clk 0:00:38.5]} 62... Kc7 {[%clk 0:00:14.8]} 63. Rxe3 {[%clk 0:00:39.7]}
63... Ra4+ {[%clk 0:00:14.7]} 64. Kb5 {[%clk 0:00:40.5]} 64... Rad4 {[%clk
0:00:15]} 65. b4 {[%clk 0:00:38.5]} 65... Kb7 {[%clk 0:00:14.5]} 66. Rf6 {[%clk
0:00:33.5]} 66... R4d5+ {[%clk 0:00:14.5]} 67. Ka4 {[%clk 0:00:34.8]} 67... Rd1
{[%clk 0:00:15.3]} 68. Re5 {[%clk 0:00:32.9]} 68... Ra1+ {[%clk 0:00:15.4]} 69.
Kb5 {[%clk 0:00:34.2]} 69... Rh1 {[%clk 0:00:15.8]} 70. Rh6 {[%clk 0:00:34.7]}
70... Rf7 {[%clk 0:00:15.1]} 71. Reh5 {[%clk 0:00:29]} 71... Rc7 {[%clk
0:00:06.1]} 72. Rxh7 {[%clk 0:00:29.9]} 72... Rc1 {[%clk 0:00:07.1]} 73. h4
{[%clk 0:00:26.8]} 73... Rd1 {[%clk 0:00:05.1]} 74. Rxc7+ {[%clk 0:00:24.4]}
74... Kxc7 {[%clk 0:00:06.4]} 75. Rh7+ {[%clk 0:00:25.7]} 75... Kc8 {[%clk
0:00:05.6]} 76. h5 {[%clk 0:00:26.9]} 76... Rd6 {[%clk 0:00:04.3]} 77. Kc5
{[%clk 0:00:26.2]} 77... Rf6 {[%clk 0:00:04.7]} 78. b5 {[%clk 0:00:25]} 78...
Kb8 {[%clk 0:00:05.8]} 79. Kb4 {[%clk 0:00:24.9]} 79... Rf4+ {[%clk 0:00:05.9]}
80. Ka5 {[%clk 0:00:26]} 80... Rf6 {[%clk 0:00:07.5]} 81. Rg7 {[%clk 0:00:27.1]}
81... Rh6 {[%clk 0:00:06.5]} 82. Rg8+ {[%clk 0:00:24.9]} 82... Kb7 {[%clk
0:00:07.1]} 83. Rg7+ {[%clk 0:00:26.3]} 83... Kb8 {[%clk 0:00:07.7]} 84. Rg5
{[%clk 0:00:27.4]} 84... Rf6 {[%clk 0:00:07.4]} 85. Rg6 {[%clk 0:00:28.4]} 85...
Rf5 {[%clk 0:00:06.5]} 86. h6 {[%clk 0:00:29.7]} 86... Rh5 {[%clk 0:00:07.7]}
87. Ka6 {[%clk 0:00:30.3]} 87... Rh1 {[%clk 0:00:06.3]} 88. Rg8+ {[%clk
0:00:31.3]} 88... Kc7 {[%clk 0:00:07]} 89. b6+ {[%clk 0:00:32.7]} 89... Kc6
{[%clk 0:00:08.2]} 90. Rg6+ {[%clk 0:00:33.3]} 90... Kd7 {[%clk 0:00:08.4]} 91.
b7 {[%clk 0:00:33.7]} 91... Ra1+ {[%clk 0:00:07.7]} 92. Kb6 {[%clk 0:00:35.1]}
92... Rb1+ {[%clk 0:00:09.2]} 93. Ka7 {[%clk 0:00:36.5]} 93... Ra1+ {[%clk
0:00:10]} 94. Ra6 {[%clk 0:00:37.6]} 1-0

[Event "*** Titled Tuesday 3|2 Blitz"]
[Site "Chess.com"]
[Date "2016.07.05"]
[Round "2"]
[White "Quiet_Desperation"]
[Black "dawtonlms"]
[Result "0-1"]
[WhiteElo "2160"]
[BlackElo "2157"]
[TimeControl "180+2"]
[EndTime "17:17:21 PDT"]
[Termination "dawtonlms won by resignation"]

1. e4 {[%clk 0:03:01.9]} 1... c5 {[%clk 0:02:43.9]} 2. Nf3 {[%clk 0:03:01.6]}
2... e6 {[%clk 0:02:44.9]} 3. d4 {[%clk 0:03:03.5]} 3... cxd4 {[%clk 0:02:45.9]}
4. Nxd4 {[%clk 0:03:05.4]} 4... a6 {[%clk 0:02:47.4]} 5. Nc3 {[%clk 0:03:06.7]}
5... Qc7 {[%clk 0:02:48.1]} 6. Nb3 {[%clk 0:03:07.8]} 6... Nf6 {[%clk
0:02:48.5]} 7. Bd3 {[%clk 0:03:09.5]} 7... Nc6 {[%clk 0:02:49.9]} 8. Be3 {[%clk
0:03:11.2]} 8... d6 {[%clk 0:02:51.3]} 9. O-O {[%clk 0:03:12.9]} 9... Be7 {[%clk
0:02:52.8]} 10. f4 {[%clk 0:03:14.6]} 10... O-O {[%clk 0:02:54.1]} 11. g4 {[%clk
0:03:16]} 11... b5 {[%clk 0:02:55.2]} 12. a3 {[%clk 0:03:16.8]} 12... Bb7 {[%clk
0:02:54.9]} 13. g5 {[%clk 0:03:18.1]} 13... Nd7 {[%clk 0:02:55.8]} 14. Qh5
{[%clk 0:03:19.4]} 14... g6 {[%clk 0:02:56.3]} 15. Qh6 {[%clk 0:03:20.1]} 15...
f5 {[%clk 0:02:40]} 16. exf5 {[%clk 0:03:18.5]} 16... exf5 {[%clk 0:02:35.5]}
17. Nd4 {[%clk 0:03:17.7]} 17... Nxd4 {[%clk 0:02:21.9]} 18. Bxd4 {[%clk
0:03:18.5]} 18... Rf7 {[%clk 0:02:22.5]} 19. Bxf5 {[%clk 0:03:06.6]} 19... Bf8
{[%clk 0:02:12.7]} 20. Be6 {[%clk 0:02:40.7]} 20... Bxh6 {[%clk 0:02:13.2]} 21.
gxh6 {[%clk 0:02:42.3]} 21... Re8 {[%clk 0:02:09.8]} 22. Bb3 {[%clk 0:02:43.4]}
22... Nc5 {[%clk 0:02:05.6]} 23. Bxf7+ {[%clk 0:02:42.7]} 23... Kxf7 {[%clk
0:02:02.7]} 24. f5 {[%clk 0:02:43.7]} 24... Qc6 {[%clk 0:02:00.8]} 25. fxg6+
{[%clk 0:02:44.3]} 25... Kxg6 {[%clk 0:02:02]} 26. Rf6+ {[%clk 0:02:45.5]} 26...
Kg5 {[%clk 0:02:00.2]} 0-1

[Event "*** Titled Tuesday 3|2 Blitz"]
[Site "Chess.com"]
[Date "2016.07.05"]
[Round "2"]
[White "simplerXiao"]
[Black "Newlight1"]
[Result "0-1"]
[WhiteElo "2314"]
[BlackElo "2264"]
[TimeControl "180+2"]
[EndTime "17:17:42 PDT"]
[Termination "Newlight1 won by resignation"]

1. Nc3 {[%clk 0:03:01.9]} 1... d5 {[%clk 0:02:55.9]} 2. d4 {[%clk 0:03:01.7]}
2... Nf6 {[%clk 0:02:55.9]} 3. Bf4 {[%clk 0:03:02.1]} 3... c5 {[%clk 0:02:51.4]}
4. e3 {[%clk 0:03:03.2]} 4... Nc6 {[%clk 0:02:52.4]} 5. Nb5 {[%clk 0:03:00.1]}
5... e5 {[%clk 0:02:30.1]} 6. dxe5 {[%clk 0:03:00.6]} 6... a6 {[%clk 0:02:28.6]}
7. exf6 {[%clk 0:02:45.8]} 7... axb5 {[%clk 0:02:27.2]} 8. fxg7 {[%clk
0:02:37.9]} 8... Bxg7 {[%clk 0:02:29.1]} 9. c3 {[%clk 0:02:38.8]} 9... b4 {[%clk
0:02:26.1]} 10. cxb4 {[%clk 0:02:33.4]} 10... Bxb2 {[%clk 0:02:24.2]} 11. Bb5
{[%clk 0:02:25]} 11... Bc3+ {[%clk 0:02:12.2]} 12. Kf1 {[%clk 0:02:24.8]} 12...
Qb6 {[%clk 0:02:10.8]} 13. Bxc6+ {[%clk 0:02:21.9]} 13... bxc6 {[%clk
0:02:11.6]} 14. bxc5 {[%clk 0:02:21.3]} 14... Ba6+ {[%clk 0:02:08.4]} 15. Ne2
{[%clk 0:02:20.9]} 15... Qb2 {[%clk 0:02:07.3]} 16. g4 {[%clk 0:01:34.8]} 16...
Qxa1 {[%clk 0:02:04.1]} 0-1

[Event "*** Titled Tuesday 3|2 Blitz"]
[Site "Chess.com"]
[Date "2016.07.05"]
[Round "2"]
[White "Zenzo"]
[Black "Alliswell998"]
[Result "1-0"]
[WhiteElo "2370"]
[BlackElo "2176"]
[TimeControl "180+2"]
[EndTime "17:18:18 PDT"]
[Termination "Zenzo won by resignation"]

1. e4 {[%clk 0:03:01.9]} 1... c5 {[%clk 0:03:00]} 2. Nf3 {[%clk 0:02:59.3]} 2...
d6 {[%clk 0:02:59.6]} 3. d4 {[%clk 0:03:00.3]} 3... cxd4 {[%clk 0:03:00.5]} 4.
Nxd4 {[%clk 0:03:02.2]} 4... Nf6 {[%clk 0:03:02.1]} 5. Nc3 {[%clk 0:03:02.4]}
5... a6 {[%clk 0:03:03.4]} 6. Be3 {[%clk 0:03:02.9]} 6... e5 {[%clk 0:03:04]} 7.
Nb3 {[%clk 0:03:04.2]} 7... Be7 {[%clk 0:03:05.3]} 8. Qd2 {[%clk 0:03:05.2]}
8... Be6 {[%clk 0:03:06.8]} 9. O-O-O {[%clk 0:03:06.1]} 9... Ng4 {[%clk
0:03:06.1]} 10. g3 {[%clk 0:03:07.2]} 10... Nxe3 {[%clk 0:03:06.3]} 11. Qxe3
{[%clk 0:03:09.1]} 11... O-O {[%clk 0:03:04.9]} 12. f4 {[%clk 0:03:09.5]} 12...
Nc6 {[%clk 0:02:57.7]} 13. Kb1 {[%clk 0:03:10.2]} 13... exf4 {[%clk 0:02:48.2]}
14. gxf4 {[%clk 0:03:10.6]} 14... Nb4 {[%clk 0:02:45.7]} 15. Nd4 {[%clk
0:02:59.2]} 15... Qb6 {[%clk 0:02:36.4]} 16. f5 {[%clk 0:02:16.8]} 16... Bd7
{[%clk 0:02:26.2]} 17. Rg1 {[%clk 0:02:12.4]} 17... Bf6 {[%clk 0:02:25.5]} 18.
a3 {[%clk 0:02:07.3]} 18... Nc6 {[%clk 0:02:23.2]} 19. Nd5 {[%clk 0:02:07.5]}
19... Qxd4 {[%clk 0:02:15.6]} 20. Rxd4 {[%clk 0:02:02.3]} 20... Bxd4 {[%clk
0:02:17.5]} 21. Qg5 {[%clk 0:01:37.4]} 21... Bxg1 {[%clk 0:02:16]} 22. f6 {[%clk
0:01:19.2]} 1-0